bitfinex-derivatives/quotes_BTCF0:USTF0_20241006
["timestamp","ask_amount","ask_price","bid_price","bid_amount"]
[1728227206444,0.001,62576.0,62575.0,0.063926]
[1728227206751,0.002,62577.0,62576.0,0.063925]
[1728227207349,0.001,62577.0,62576.0,0.12711841]
[1728227207549,0.001,62577.0,62576.0,0.063925]
[1728227208846,0.001,62577.0,62576.0,0.543325]
[1728227209056,0.3608,62588.0,62576.0,1.0794]
[1728227209349,0.02971376,62586.0,62582.0,0.04757196]
[1728227209545,0.02971376,62586.0,62578.0,0.04757196]
[1728227209546,0.063922,62579.0,62578.0,0.04757196]
[1728227209952,0.233922,62579.0,62578.0,0.04757196]
[1728227210845,0.234922,62579.0,62578.0,0.04757196]
[1728227211037,0.235922,62579.0,62574.0,0.063927]
[1728227211237,0.235922,62579.0,62573.0,0.04757196]
[1728227211238,0.172,62579.0,62573.0,0.04757196]
[1728227211441,0.172,62579.0,62569.0,0.53632928]
[1728227211442,0.172,62579.0,62577.0,0.063924]
[1728227212155,0.002,62579.0,62578.0,0.063923]
[1728227212346,0.001,62579.0,62578.0,0.063923]
[1728227212547,0.002,62579.0,62578.0,0.063923]
[1728227213148,0.001,62579.0,62578.0,0.063923]
[1728227213354,0.001,62579.0,62578.0,0.065923]
[1728227213355,0.172,62579.0,62578.0,0.065923]
[1728227213746,0.002,62579.0,62578.0,0.065923]
[1728227214755,0.002,62579.0,62578.0,0.21929496]
[1728227215450,0.0004,62586.0,62578.0,1.46870955]
[1728227215646,0.0004,62586.0,62585.0,0.063916]
[1728227216054,0.0004,62586.0,62585.0,0.904076]
[1728227216257,0.0004,62586.0,62585.0,1.55166097]
[1728227216562,0.0014,62586.0,62585.0,1.504076]
[1728227216749,0.0024,62586.0,62585.0,0.904076]
[1728227216950,0.0024,62586.0,62585.0,1.504076]
[1728227218055,0.0024,62586.0,62585.0,1.62225865]
[1728227218353,0.0037,62597.0,62596.0,0.063905]
[1728227218553,0.11159723,62599.0,62598.0,0.063903]
[1728227219156,0.063903,62598.0,62594.0,0.11141803]
[1728227219365,0.11159723,62599.0,62594.0,0.063906]
[1728227219366,0.17,62596.0,62594.0,0.063906]
[1728227220256,0.17,62596.0,62594.0,0.066906]
[1728227220556,0.17,62596.0,62594.0,0.074906]
[1728227220946,0.1014,62597.0,62594.0,0.066906]
[1728227221150,0.1089,62598.0,62594.0,0.011]
[1728227221151,0.001,62598.0,62594.0,0.011]
[1728227221461,0.001,62598.0,62597.0,0.063904]
[1728227221970,0.1107,62606.0,62598.0,0.063903]
[1728227222258,0.0037,62613.0,62608.0,0.063892]
[1728227222463,0.3234,62616.0,62615.0,0.063885]
[1728227222652,0.35230118,62616.0,62615.0,0.063885]
[1728227223161,0.3608,62619.0,62612.0,0.17]
[1728227223366,0.1053,62625.0,62620.0,0.063879]
[1728227223553,0.1053,62625.0,62621.0,0.17]
[1728227223752,0.03042507,62622.0,62620.0,0.063879]
[1728227224066,0.0023211,62622.0,62620.0,0.063879]
[1728227225264,0.0163211,62622.0,62620.0,0.064879]
[1728227225856,0.0173211,62622.0,62620.0,0.073879]
[1728227226057,0.0173211,62622.0,62620.0,0.009]
[1728227226260,0.1743211,62622.0,62620.0,0.018]
[1728227226767,0.063879,62621.0,62620.0,0.018]
[1728227228766,0.001,62621.0,62620.0,0.08288]
[1728227229565,0.001,62621.0,62620.0,0.08188]
[1728227230156,0.001,62621.0,62620.0,0.018]
[1728227230363,0.1127,62621.0,62620.0,0.018]
[1728227231567,0.1127,62621.0,62620.0,0.01607868]
[1728227235776,0.001,62621.0,62620.0,0.01607868]
[1728227235960,0.001,62621.0,62620.0,0.07995868]
[1728227239976,0.0004,62635.0,62632.0,0.063868]
[1728227240180,0.0004,62635.0,62634.0,0.063866]
[1728227240771,0.0037,62644.0,62643.0,0.063857]
[1728227240966,0.063848,62651.0,62643.0,0.063857]
[1728227241268,0.09232268,62651.0,62643.0,0.063857]
[1728227241472,0.02847468,62651.0,62640.0,0.17]
[1728227241674,0.3608,62653.0,62644.0,0.17]
[1728227241869,0.38938695,62653.0,62644.0,0.17]
[1728227242073,0.38938695,62653.0,62649.0,0.06385]
[1728227242871,0.39138695,62653.0,62649.0,0.06385]
[1728227243275,0.17,62651.0,62643.0,0.004]
[1728227243471,0.063856,62644.0,62643.0,0.004]
[1728227243665,0.063856,62644.0,62639.0,0.55554559]
[1728227243867,0.17,62642.0,62639.0,0.55554559]
[1728227245582,0.2202,62643.0,62640.0,0.06386]
[1728227246181,0.001,62642.0,62640.0,0.06386]
[1728227246779,0.001,62642.0,62641.0,0.063859]
[1728227246981,0.002,62643.0,62642.0,0.063858]
[1728227247475,0.001,62643.0,62642.0,0.063858]
[1728227247676,0.1119,62651.0,62640.0,0.177]
[1728227247978,0.001,62642.0,62641.0,0.063859]
[1728227248173,0.001,62642.0,62641.0,0.165659]
[1728227248379,0.001,62642.0,62641.0,0.272559]
[1728227248769,0.001,62642.0,62641.0,0.384459]
[1728227248965,0.001,62642.0,62641.0,0.554459]
[1728227249177,0.002,62642.0,62641.0,0.560459]
[1728227249676,0.001,62642.0,62641.0,0.560459]
[1728227250882,0.001,62642.0,62641.0,0.566459]
[1728227253683,0.02834325,62645.0,62644.0,0.063856]
[1728227254074,0.174443,62656.0,62641.0,0.86472]
[1728227254283,0.170743,62656.0,62654.0,0.17]
[1728227254480,0.19908912,62656.0,62654.0,0.17]
[1728227254779,0.00239477,62657.0,62655.0,0.063844]
[1728227254974,0.00239477,62657.0,62656.0,0.063843]
[1728227255575,0.1087,62665.0,62663.0,0.063836]
[1728227255780,0.06383,62669.0,62664.0,0.17]
[1728227256884,0.06383,62669.0,62657.0,0.0037]
[1728227256885,0.2152,62676.0,62668.0,0.17]
[1728227257185,0.008,62669.0,62668.0,0.17]
[1728227257486,0.008,62669.0,62668.0,0.233831]
[1728227259075,0.008,62669.0,62668.0,0.234831]
[1728227259282,0.002,62676.0,62675.0,0.063824]
[1728227259487,0.002,62676.0,62675.0,0.233824]
[1728227259782,0.067512,62687.0,62675.0,1.97024]
[1728227259990,0.00239419,62689.0,62684.0,0.233815]
[1728227260178,0.00239419,62689.0,62684.0,0.17]
[1728227260377,0.00239419,62689.0,62677.0,0.0057]
[1728227260378,0.00239419,62689.0,62688.0,0.5308]
[1728227261192,0.00239419,62689.0,62688.0,0.17]
[1728227261683,0.00239419,62689.0,62687.0,0.3608]
[1728227261684,0.063811,62688.0,62687.0,0.3608]
[1728227263388,0.03086113,62689.0,62680.0,0.17]
[1728227263577,0.03086113,62689.0,62675.0,0.0037]
[1728227263578,0.063821,62679.0,62675.0,0.0037]
[1728227263779,0.167021,62678.0,62674.0,0.3608]
[1728227264182,0.063823,62676.0,62674.0,0.3608]
[1728227265086,0.1032,62678.0,62674.0,0.3608]
[1728227265878,0.1032,62678.0,62677.0,0.01]
[1728227266396,0.1032,62678.0,62676.0,0.233822]
[1728227267094,0.1032,62678.0,62677.0,0.064822]
[1728227267283,0.1032,62678.0,62677.0,0.065822]
[1728227267482,0.1032,62678.0,62677.0,1.144462]
[1728227267681,0.00609419,62689.0,62688.0,0.063811]
[1728227267890,0.1106,62697.0,62692.0,0.063806]
[1728227268088,0.38886278,62696.0,62695.0,0.17]
[1728227268394,0.38886278,62696.0,62690.0,0.17]
[1728227269285,0.38886278,62696.0,62688.0,0.063811]
[1728227269707,0.38886278,62696.0,62689.0,0.063809]
[1728227270791,0.38886278,62696.0,62690.0,0.001]
[1728227271296,0.38886278,62696.0,62690.0,0.064808]
[1728227271689,0.38886278,62696.0,62691.0,0.063808]
[1728227272296,0.38886278,62696.0,62690.0,0.001]
[1728227272680,0.1064,62695.0,62689.0,0.002]
[1728227273099,0.1064,62695.0,62694.0,0.063805]
[1728227274788,0.1064,62695.0,62694.0,0.064805]
[1728227275105,0.1064,62695.0,62694.0,0.065805]
[1728227275500,1.18492,62695.0,62684.0,0.3608]
[1728227275805,0.17,62690.0,62685.0,0.063814]
[1728227275988,0.17,62690.0,62681.0,0.06621095]
[1728227276298,0.06381,62689.0,62681.0,0.06621095]
[1728227276501,0.17,62685.0,62681.0,0.06621095]
[1728227276693,0.1031,62684.0,62681.0,0.06621095]
[1728227277400,0.1031,62684.0,62681.0,0.00239295]
[1728227278200,0.1031,62684.0,62681.0,0.00339295]
[1728227278390,0.5308,62682.0,62681.0,0.00439295]
[1728227279599,0.5308,62682.0,62681.0,0.00339295]
[1728227279799,0.5308,62682.0,62681.0,0.00439295]
[1728227280102,0.3608,62682.0,62681.0,0.00439295]
[1728227280304,0.3608,62682.0,62681.0,0.00339295]
[1728227280601,0.3628,62682.0,62681.0,0.00439295]
[1728227281599,0.3628,62682.0,62681.0,0.00339295]
[1728227282001,0.3628,62682.0,62681.0,0.17339295]
[1728227282206,0.5308,62697.0,62689.0,0.063809]
[1728227282207,0.36164,62697.0,62689.0,0.063809]
[1728227282508,0.02818306,62694.0,62693.0,0.17]
[1728227282708,0.3608,62697.0,62693.0,0.17]
[1728227283394,0.13740752,62695.0,62693.0,0.17]
[1728227283812,0.001,62694.0,62693.0,0.171]
[1728227284194,0.001,62694.0,62693.0,0.172]
[1728227284601,0.03100752,62695.0,62693.0,0.171]
[1728227284807,0.03200752,62695.0,62693.0,0.172]
[1728227285903,0.03200752,62695.0,62694.0,0.3608]
[1728227286707,0.03100752,62695.0,62694.0,0.3608]
[1728227287397,0.03100752,62695.0,62694.0,0.3618]
[1728227287605,0.03100752,62695.0,62694.0,0.3628]
[1728227289002,0.03100752,62695.0,62694.0,0.002]
[1728227292616,0.09481152,62695.0,62694.0,0.002]
[1728227293517,0.06381,62689.0,62686.0,0.04751203]
[1728227293810,0.39180752,62695.0,62683.0,0.04751203]
[1728227293811,0.063812,62687.0,62683.0,0.04751203]
[1728227293997,0.063814,62685.0,62683.0,0.04751203]
[1728227294308,0.3608,62689.0,62682.0,0.219]
[1728227294519,0.063817,62682.0,62681.0,0.00239295]
[1728227295398,0.063821,62678.0,62673.0,0.0037]
[1728227295596,0.17,62677.0,62671.0,0.11134003]
[1728227295805,0.17,62677.0,62671.0,0.063828]
[1728227296003,0.17,62677.0,62670.0,0.15351203]
[1728227296203,0.17,62677.0,62668.0,0.04751203]
[1728227296403,0.3608,62683.0,62667.0,0.11134403]
[1728227296404,0.17,62673.0,62667.0,0.11134403]
[1728227296604,0.17,62673.0,62666.0,0.3608]
[1728227296812,0.063832,62667.0,62662.0,0.04990541]
[1728227297110,0.233833,62666.0,62662.0,0.00239338]
[1728227297911,0.3608,62668.0,62662.0,0.00239338]
[1728227298905,0.3608,62668.0,62662.0,0.01639338]
[1728227299310,0.063835,62665.0,62662.0,0.01639338]
[1728227299612,0.17,62664.0,62662.0,0.01639338]
[1728227299810,0.233835,62664.0,62662.0,0.01639338]
[1728227300014,0.233835,62664.0,62662.0,0.02839338]
[1728227300604,0.233835,62664.0,62662.0,0.01839338]
[1728227301308,0.39102337,62668.0,62662.0,0.00939338]
[1728227301509,0.39022337,62668.0,62662.0,0.18839338]
[1728227301711,0.39022337,62668.0,62664.0,0.063834]
[1728227302817,0.39022337,62668.0,62662.0,0.18839338]
[1728227303020,0.3608,62668.0,62667.0,0.063832]
[1728227304725,0.3608,62668.0,62667.0,0.065832]
[1728227305224,0.3616,62673.0,62667.0,0.176]
[1728227305408,0.3608,62673.0,62672.0,0.233827]
[1728227306814,0.3608,62673.0,62672.0,0.234827]
[1728227307925,0.3618,62673.0,62672.0,0.234827]
[1728227308625,0.3618,62673.0,62672.0,0.235827]
[1728227308813,0.3618,62673.0,62672.0,0.065827]
[1728227310237,0.3618,62673.0,62672.0,0.074827]
[1728227310814,0.3618,62673.0,62672.0,0.071827]
[1728227311217,0.3608,62673.0,62672.0,0.080827]
[1728227311417,0.3608,62673.0,62672.0,0.078827]
[1728227312635,0.3608,62673.0,62672.0,0.074827]
[1728227313339,0.3608,62673.0,62672.0,0.073827]
[1728227314231,0.3608,62673.0,62672.0,0.069827]
[1728227314433,0.3608,62673.0,62672.0,0.077827]
[1728227314636,0.3608,62673.0,62672.0,0.081827]
[1728227314931,0.3608,62673.0,62672.0,0.077827]
[1728227316026,0.3608,62673.0,62672.0,0.073827]
[1728227317637,0.3608,62673.0,62672.0,0.243827]
[1728227318434,0.3608,62673.0,62672.0,0.073827]
[1728227319437,0.594626,62673.0,62672.0,0.01]
[1728227319636,0.063833,62666.0,62661.0,0.55554559]
[1728227319938,0.17,62665.0,62661.0,0.55554559]
[1728227320734,0.17,62665.0,62660.0,0.063839]
[1728227321039,0.063833,62666.0,62661.0,0.063838]
[1728227321429,0.063833,62666.0,62661.0,0.071838]
[1728227321735,0.001,62665.0,62663.0,0.063836]
[1728227322434,0.233832,62668.0,62663.0,0.063836]
[1728227322631,0.001,62666.0,62663.0,0.063836]
[1728227323841,0.001,62666.0,62663.0,0.068836]
[1728227324140,0.001,62666.0,62663.0,0.063836]
[1728227324440,0.001,62665.0,62663.0,0.075836]
[1728227324840,0.001,62665.0,62663.0,0.012]
[1728227325030,0.17,62664.0,62663.0,0.005]
[1728227325230,0.233835,62664.0,62663.0,0.012]
[1728227325830,0.233835,62664.0,62663.0,0.005]
[1728227326135,0.233835,62664.0,62663.0,0.012]
[1728227326729,1.312595,62664.0,62663.0,0.012]
[1728227327442,1.312595,62664.0,62655.0,0.063844]
[1728227327443,1.24876,62664.0,62655.0,0.063844]
[1728227327742,0.17,62658.0,62651.0,0.04751203]
[1728227327947,0.3118,62657.0,62650.0,0.06624282]
[1728227328138,0.3118,62657.0,62651.0,0.063848]
[1728227328338,0.3118,62657.0,62650.0,0.00239382]
[1728227328646,0.001,62664.0,62655.0,0.014]
[1728227328943,0.001,62664.0,62663.0,0.233836]
[1728227329540,0.002,62664.0,62663.0,0.233836]
[1728227330433,0.001,62664.0,62663.0,0.233836]
[1728227330747,0.02834094,62668.0,62663.0,0.238836]
[1728227330947,0.271129,62670.0,62663.0,0.238836]
[1728227331645,0.001,62664.0,62663.0,0.244836]
[1728227332349,0.30054852,62670.0,62663.0,0.238836]
[1728227332550,0.30954852,62670.0,62663.0,0.233836]
[1728227332756,0.30954852,62670.0,62663.0,0.063836]
[1728227333246,0.30454852,62670.0,62663.0,0.063836]
[1728227333435,0.30454852,62670.0,62663.0,0.068836]
[1728227333852,0.30454852,62670.0,62663.0,0.063836]
[1728227334051,0.30954852,62670.0,62663.0,0.063836]
[1728227334344,0.30554852,62670.0,62663.0,0.070836]
[1728227334550,0.001,62664.0,62663.0,0.070836]
[1728227335346,0.24171952,62670.0,62660.0,0.17]
[1728227335552,0.14281952,62670.0,62663.0,0.063836]
[1728227335948,0.13781952,62670.0,62663.0,0.063836]
[1728227336152,0.20164852,62670.0,62663.0,0.068836]
[1728227336346,0.20164852,62670.0,62663.0,0.005]
[1728227336741,0.20164852,62670.0,62660.0,0.17]
[1728227336951,0.06383,62669.0,62660.0,0.17]
[1728227337264,0.06383,62669.0,62660.0,0.233839]
[1728227338246,0.063832,62668.0,62660.0,0.233839]
[1728227338443,0.063832,62667.0,62660.0,0.28135103]
[1728227338658,0.001,62664.0,62663.0,0.007]
[1728227339547,0.063834,62665.0,62660.0,0.29135103]
[1728227339756,0.5308,62667.0,62660.0,0.05751203]
[1728227339954,0.3608,62661.0,62660.0,0.01]
[1728227340457,0.3608,62661.0,62656.0,0.32915503]
[1728227340755,0.17,62659.0,62653.0,0.04751203]
[1728227341356,0.17,62659.0,62652.0,0.04751203]
[1728227342050,0.3618,62661.0,62656.0,0.063843]
[1728227342265,0.3618,62661.0,62658.0,0.063841]
[1728227342650,0.3628,62661.0,62660.0,0.01]
[1728227342857,0.002,62661.0,62660.0,0.01]
[1728227343052,0.03032411,62661.0,62660.0,0.01]
[1728227343356,0.063834,62665.0,62658.0,0.063841]
[1728227343549,0.001,62659.0,62658.0,0.075841]
[1728227344158,0.002,62661.0,62660.0,0.008]
[1728227344353,0.002,62661.0,62660.0,0.018]
[1728227344852,0.002,62661.0,62660.0,0.081839]
[1728227345850,0.002,62661.0,62660.0,0.073839]
[1728227346052,0.02883873,62665.0,62659.0,0.1103]
[1728227346346,0.3608,62667.0,62661.0,0.063838]
[1728227346655,0.39001451,62667.0,62661.0,0.063838]
[1728227347848,0.39101451,62667.0,62661.0,0.070838]
[1728227348362,0.45484751,62667.0,62661.0,0.070838]
[1728227349657,0.45584751,62667.0,62661.0,0.079838]
[1728227350057,0.09504751,62667.0,62661.0,0.079838]
[1728227350258,0.3608,62664.0,62661.0,0.079838]
[1728227351451,0.3618,62664.0,62661.0,0.016]
[1728227351660,0.425635,62664.0,62661.0,0.016]
[1728227353064,0.426635,62664.0,62661.0,0.016]
[1728227353960,0.3628,62664.0,62661.0,0.016]
[1728227354163,0.063836,62663.0,62661.0,0.016]
[1728227355354,0.063837,62662.0,62661.0,0.016]
[1728227355760,0.173537,62662.0,62661.0,0.016]
[1728227356559,0.173537,62662.0,62661.0,0.009]
[1728227356860,0.173537,62662.0,62661.0,0.016]
[1728227357064,0.173537,62662.0,62661.0,0.009]
[1728227357362,0.174537,62662.0,62661.0,0.016]
[1728227357557,0.174537,62662.0,62661.0,0.007]
[1728227357764,0.175537,62662.0,62661.0,0.016]
[1728227358165,0.002,62662.0,62661.0,0.016]
[1728227358470,0.002,62662.0,62661.0,0.079838]
[1728227361657,0.002,62662.0,62661.0,0.12735003]
[1728227361865,0.002,62662.0,62661.0,0.29735003]
[1728227362165,0.002,62662.0,62661.0,0.249838]
[1728227365371,0.002,62662.0,62661.0,0.079838]
[1728227367672,0.002,62662.0,62661.0,0.182738]
[1728227367976,0.002,62662.0,62661.0,0.287138]
[1728227368873,0.002,62662.0,62661.0,0.457138]
[1728227369080,0.002,62662.0,62661.0,0.50456756]
[1728227369262,0.002,62662.0,62661.0,0.457138]
[1728227370669,0.002,62662.0,62661.0,0.33456661]
[1728227370974,0.002,62662.0,62661.0,0.23016654]
[1728227371477,0.002,62662.0,62661.0,0.182738]
[1728227382305,0.002,62662.0,62661.0,0.352738]
[1728227387686,0.002,62662.0,62661.0,0.249838]
[1728227387888,0.002,62662.0,62661.0,0.31318737]
[1728227388086,0.002,62662.0,62661.0,0.249838]
[1728227388288,0.002,62662.0,62661.0,0.31318737]
[1728227390478,0.002,62662.0,62661.0,0.25318737]
[1728227390673,0.002,62662.0,62661.0,0.189838]
[1728227391687,0.002,62662.0,62661.0,0.079838]
[1728227392585,0.002,62662.0,62661.0,0.016]
[1728227392981,0.002,62662.0,62661.0,0.079838]
[1728227393187,0.002,62662.0,62661.0,0.12731066]
[1728227394976,0.002,62662.0,62661.0,0.079838]
[1728227395181,0.002,62662.0,62661.0,0.016]
[1728227397892,0.002,62662.0,62661.0,0.079838]
[1728227400880,0.002,62662.0,62661.0,0.14318737]
[1728227401197,0.002,62662.0,62661.0,0.079838]
[1728227411899,0.3608,62670.0,62669.0,0.06383]
[1728227412097,0.3608,62670.0,62669.0,0.17383]
[1728227413000,0.3894325,62670.0,62669.0,0.17383]
[1728227413503,0.3894325,62670.0,62669.0,0.17483]
[1728227413504,0.3994325,62670.0,62669.0,0.17483]
[1728227413801,0.3994325,62670.0,62669.0,0.22227699]
[1728227414792,0.4124325,62670.0,62669.0,0.22327699]
[1728227415094,0.023,62670.0,62669.0,0.53663]
[1728227415300,0.023,62670.0,62669.0,0.59990644]
[1728227415610,0.023,62670.0,62669.0,0.53663]
[1728227416202,0.023,62670.0,62669.0,0.59977506]
[1728227416594,0.023,62670.0,62669.0,0.53663]
[1728227417302,0.023,62670.0,62669.0,0.59975586]
[1728227417505,0.00239408,62677.0,62676.0,0.063823]
[1728227417802,0.00239408,62677.0,62676.0,0.173823]
[1728227417991,0.03183887,62677.0,62676.0,0.173823]
[1728227418191,0.00239408,62677.0,62676.0,0.173823]
[1728227418606,0.01239408,62677.0,62676.0,0.174823]
[1728227419304,0.02539408,62677.0,62676.0,0.175823]
[1728227419695,0.023,62677.0,62676.0,0.175823]
[1728227420102,0.023,62677.0,62676.0,0.22316374]
[1728227420299,0.013,62677.0,62676.0,1.67838399]
[1728227420497,0.013,62677.0,62676.0,1.615263]
[1728227422508,0.02812259,62682.0,62681.0,0.063818]
[1728227422708,0.06381,62689.0,62681.0,0.11]
[1728227422907,0.06381,62689.0,62687.0,0.11]
[1728227423704,0.36319311,62690.0,62689.0,0.06381]
[1728227424799,0.39144226,62690.0,62689.0,0.06381]
[1728227425206,0.03064226,62690.0,62689.0,0.06481]
[1728227425605,0.03064226,62690.0,62689.0,0.06581]
[1728227426014,0.02824915,62690.0,62689.0,0.06581]
[1728227426313,0.1079,62699.0,62697.0,0.063801]
[1728227426506,0.1079,62699.0,62698.0,0.11]
[1728227426907,0.13602271,62699.0,62698.0,0.11]
[1728227427704,0.13602271,62699.0,62698.0,0.111]
[1728227427914,0.13602271,62699.0,62698.0,0.174801]
[1728227428111,0.02812271,62699.0,62698.0,0.174801]
[1728227428412,0.2232,62703.0,62699.0,0.063799]
[1728227428719,0.2232,62703.0,62702.0,0.173797]
[1728227429205,0.0037,62713.0,62702.0,1.54924]
[1728227429408,0.3608,62721.0,62712.0,0.11]
[1728227429409,0.0037,62717.0,62712.0,0.11]
[1728227429608,0.3608,62721.0,62716.0,0.11]
[1728227429801,0.3608,62721.0,62720.0,0.11]
[1728227430006,0.3891788,62721.0,62720.0,0.11]
[1728227430515,0.3891788,62721.0,62718.0,0.06378]
[1728227431215,0.3891788,62721.0,62720.0,0.002]
[1728227431910,0.3891788,62721.0,62720.0,0.001]
[1728227432111,0.3891788,62721.0,62718.0,0.06578]
[1728227433414,0.712099,62720.0,62718.0,0.001]
[1728227433724,0.3608,62719.0,62705.0,0.0037]
[1728227433920,0.3608,62719.0,62699.0,0.00239194]
[1728227433921,0.063796,62703.0,62699.0,0.00239194]
[1728227434109,0.3608,62719.0,62699.0,0.00239194]
[1728227434110,0.17,62700.0,62699.0,0.00239194]
[1728227434316,0.3211,62702.0,62699.0,0.00239194]
[1728227436924,0.3211,62702.0,62699.0,0.01739194]
[1728227437520,0.3211,62702.0,62699.0,0.00239194]
[1728227437822,0.3211,62702.0,62699.0,0.01639194]
[1728227438219,0.3211,62702.0,62699.0,0.00939194]
[1728227438422,0.3231,62702.0,62700.0,0.063798]
[1728227438608,0.3231,62702.0,62701.0,0.17]
[1728227439626,0.35205113,62702.0,62701.0,0.17]
[1728227440021,0.35105113,62702.0,62701.0,0.17]
[1728227440822,0.35005113,62702.0,62701.0,0.179]
[1728227441020,0.24695113,62702.0,62701.0,0.179]
[1728227441216,0.02895113,62702.0,62701.0,0.179]
[1728227441418,0.172186,62713.0,62703.0,0.063795]
[1728227441419,0.381986,62713.0,62703.0,0.063795]
[1728227441630,0.381986,62713.0,62701.0,0.179]
[1728227441824,0.381986,62713.0,62705.0,0.063793]
[1728227443024,0.551986,62713.0,62705.0,0.063793]
[1728227443226,0.063788,62711.0,62701.0,0.009]
[1728227443533,0.063788,62711.0,62700.0,0.063798]
[1728227444215,0.063788,62711.0,62705.0,0.001]
[1728227444621,0.063788,62711.0,62702.0,0.063796]
[1728227445731,0.063788,62711.0,62700.0,0.001]
[1728227445921,0.34797445,62713.0,62708.0,0.23379]
[1728227446117,0.34717445,62713.0,62708.0,0.23379]
[1728227447016,0.34717445,62713.0,62712.0,0.17]
[1728227447420,0.23877445,62713.0,62712.0,0.233786]
[1728227448427,0.02897445,62713.0,62712.0,0.234786]
[1728227448629,0.3608,62719.0,62715.0,0.063783]
[1728227448817,0.3608,62719.0,62716.0,0.233782]
[1728227449223,0.38964804,62719.0,62718.0,0.06378]
[1728227450334,0.02884804,62719.0,62718.0,0.06378]
[1728227450630,0.3608,62721.0,62720.0,0.063778]
[1728227452230,0.39017653,62721.0,62720.0,0.001]
[1728227453846,0.39017653,62721.0,62716.0,0.233782]
[1728227454138,0.39017653,62721.0,62720.0,0.003]
[1728227454937,0.39017653,62721.0,62720.0,0.007]
[1728227455233,0.39017653,62721.0,62720.0,0.004]
[1728227455734,0.39017653,62721.0,62720.0,0.001]
[1728227457436,0.39017653,62721.0,62720.0,0.005]
[1728227457738,0.39017653,62721.0,62720.0,0.008]
[1728227457928,0.45395353,62721.0,62720.0,0.008]
[1728227458129,0.45395353,62721.0,62720.0,0.004]
[1728227458320,0.45395353,62721.0,62720.0,0.001]
[1728227459634,0.39017653,62721.0,62720.0,0.001]
[1728227460331,0.39017653,62721.0,62720.0,0.002]
[1728227461135,0.39017653,62721.0,62720.0,0.001]
[1728227463028,0.56017653,62721.0,62720.0,0.001]
[1728227463533,0.39017653,62721.0,62720.0,0.001]
[1728227464235,0.39017653,62721.0,62720.0,0.064778]
[1728227465357,0.2112,62725.0,62720.0,0.064778]
[1728227465358,0.0008,62728.0,62724.0,0.063773]
[1728227465532,0.00279178,62730.0,62724.0,0.17]
[1728227465842,0.00279178,62730.0,62727.0,0.06377]
[1728227466138,0.00279178,62730.0,62729.0,0.063769]
[1728227467538,0.03176381,62730.0,62729.0,0.063769]
[1728227467738,0.03176381,62730.0,62728.0,0.17]
[1728227468434,0.03176381,62730.0,62729.0,0.002]
[1728227470040,0.03176381,62730.0,62729.0,0.064769]
[1728227470938,0.03176381,62730.0,62729.0,0.065769]
[1728227471341,0.03176381,62730.0,62729.0,0.064769]
[1728227471938,0.03176381,62730.0,62729.0,0.065769]
[1728227472143,0.03176381,62730.0,62729.0,0.002]
[1728227473247,0.06256225,62730.0,62729.0,0.002]
[1728227473440,0.06256225,62730.0,62729.0,0.065769]
[1728227473743,0.03176381,62730.0,62729.0,0.065769]
[1728227475845,0.03176381,62730.0,62729.0,0.167869]
[1728227483848,0.03176381,62730.0,62729.0,0.065769]
[1728227484052,0.03176381,62730.0,62729.0,0.002]
[1728227484253,0.09553181,62730.0,62729.0,0.002]
[1728227484554,0.06378,62718.0,62717.0,0.0037]
[1728227484856,0.06378,62718.0,62707.0,0.1071]
[1728227484857,0.06378,62718.0,62708.0,0.17]
[1728227485150,0.17,62721.0,62708.0,0.23379]
[1728227485452,0.03080631,62720.0,62708.0,0.23379]
[1728227485748,0.17,62721.0,62708.0,0.23379]
[1728227485949,0.03080658,62720.0,62708.0,0.23379]
[1728227486153,0.233777,62721.0,62708.0,0.184]
[1728227486356,0.233777,62721.0,62709.0,0.063789]
[1728227486557,0.09458468,62720.0,62709.0,0.063789]
[1728227486852,0.063778,62720.0,62709.0,0.063789]
[1728227487055,0.063779,62719.0,62717.0,0.006]
[1728227487560,0.47832,62718.0,62717.0,0.006]
[1728227487742,0.47832,62718.0,62709.0,0.080489]
[1728227487947,0.063779,62719.0,62709.0,0.076789]
[1728227488553,0.063779,62719.0,62717.0,0.006]
[1728227488941,0.542099,62719.0,62717.0,0.006]
[1728227489140,0.47832,62719.0,62717.0,0.006]
[1728227489747,0.02313469,62721.0,62719.0,0.063779]
[1728227489955,0.3228,62729.0,62720.0,0.233778]
[1728227490145,0.3228,62729.0,62726.0,0.233772]
[1728227490146,0.3191,62729.0,62726.0,0.233772]
[1728227490452,0.3191,62729.0,62726.0,0.063772]
[1728227491150,0.3191,62729.0,62728.0,0.06377]
[1728227491151,0.02267557,62729.0,62728.0,0.06377]
[1728227491459,0.001,62729.0,62728.0,0.06377]
[1728227492543,0.001,62729.0,62728.0,0.06477]
[1728227493744,0.001,62729.0,62728.0,0.06577]
[1728227495156,0.001,62729.0,62728.0,0.002]
[1728227498763,0.646909,62729.0,62728.0,0.002]
[1728227499153,0.67770916,62729.0,62728.0,0.002]
[1728227499458,0.06377,62728.0,62720.0,0.063777]
[1728227499657,0.17,62726.0,62720.0,0.063777]
[1728227499959,0.17,62722.0,62714.0,0.067484]
[1728227500164,0.17,62722.0,62710.0,0.53208]
[1728227500165,0.13290231,62721.0,62710.0,0.5345]
[1728227500355,0.03080231,62720.0,62717.0,0.063781]
[1728227500959,0.001,62728.0,62719.0,0.233779]